[Event "Early-Titled-Tuesday-Blitz-June-18-2024"]
[Site "Chess.com"]
[Date "2024.06.18"]
[Round "1"]
[White "IngOscarArdila"]
[Black "Mikasinski"]
[Result "1/2-1/2"]
[WhiteElo "2406"]
[BlackElo "2709"]
[TimeControl "180+1"]
[EndTime "8:09:01 PDT"]
[Termination "Game drawn - insufficient material"]

1. d4 {[%clk 0:02:59.6]} 1... Nf6 {[%clk 0:03:00.1]} 2. c4 {[%clk 0:02:59.8]}
2... e6 {[%clk 0:03:00.7]} 3. Nc3 {[%clk 0:03:00]} 3... d5 {[%clk 0:03:01.2]} 4.
Bg5 {[%clk 0:02:59.8]} 4... Be7 {[%clk 0:03:01.4]} 5. Nf3 {[%clk 0:02:59.8]}
5... O-O {[%clk 0:03:01]} 6. e3 {[%clk 0:03:00.2]} 6... Nbd7 {[%clk 0:03:01.1]}
7. Qc2 {[%clk 0:03:00.1]} 7... h6 {[%clk 0:02:46.5]} 8. Bh4 {[%clk 0:02:59.9]}
8... c5 {[%clk 0:02:27.1]} 9. cxd5 {[%clk 0:02:57.2]} 9... Nxd5 {[%clk
0:02:10.4]} 10. Bxe7 {[%clk 0:02:56.8]} 10... Nxe7 {[%clk 0:02:08.8]} 11. Be2
{[%clk 0:02:53.6]} 11... cxd4 {[%clk 0:02:08.9]} 12. Nxd4 {[%clk 0:02:53.5]}
12... Qa5 {[%clk 0:02:05.4]} 13. O-O {[%clk 0:02:51.3]} 13... a6 {[%clk
0:01:58.9]} 14. Rfd1 {[%clk 0:02:50.2]} 14... Ne5 {[%clk 0:01:54]} 15. Nb3
{[%clk 0:02:45.8]} 15... Qc7 {[%clk 0:01:50.2]} 16. Rac1 {[%clk 0:02:42.3]}
16... b5 {[%clk 0:01:39.6]} 17. f4 {[%clk 0:02:41.8]} 17... N5g6 {[%clk
0:01:31.4]} 18. Bf3 {[%clk 0:02:40.9]} 18... Bb7 {[%clk 0:01:25.7]} 19. Qf2
{[%clk 0:02:36.2]} 19... Rad8 {[%clk 0:01:22.5]} 20. Rxd8 {[%clk 0:02:30.5]}
20... Rxd8 {[%clk 0:01:20.5]} 21. Nxb5 {[%clk 0:02:22.2]} 21... Qb6 {[%clk
0:01:13.8]} 22. N5d4 {[%clk 0:02:20.9]} 22... e5 {[%clk 0:01:08.2]} 23. Bxb7
{[%clk 0:02:07.1]} 23... exd4 {[%clk 0:01:04.7]} 24. Be4 {[%clk 0:01:46.9]}
24... dxe3 {[%clk 0:01:02.3]} 25. Qf3 {[%clk 0:01:22.1]} 25... e2+ {[%clk
0:00:56.1]} 26. Kh1 {[%clk 0:01:22.3]} 26... Nxf4 {[%clk 0:00:41.3]} 27. g3
{[%clk 0:01:22.3]} 27... Nh3 {[%clk 0:00:27.5]} 28. Qxe2 {[%clk 0:01:17.2]}
28... Qf2 {[%clk 0:00:23.5]} 29. Bf3 {[%clk 0:00:58.8]} 29... Nf5 {[%clk
0:00:15.9]} 30. Qxf2 {[%clk 0:00:57]} 30... Nxf2+ {[%clk 0:00:14.8]} 31. Kg2
{[%clk 0:00:57.9]} 31... Nd3 {[%clk 0:00:15.7]} 32. Rc6 {[%clk 0:00:54.8]} 32...
Ne3+ {[%clk 0:00:13.6]} 33. Kh3 {[%clk 0:00:54.1]} 33... Ne5 {[%clk 0:00:14]}
34. Rc3 {[%clk 0:00:46.5]} 34... Nf5 {[%clk 0:00:13.9]} 35. Be4 {[%clk
0:00:41.9]} 35... Nd6 {[%clk 0:00:13.3]} 36. Bb1 {[%clk 0:00:35.2]} 36... f5
{[%clk 0:00:13.2]} 37. Rc7 {[%clk 0:00:28.1]} 37... g5 {[%clk 0:00:11]} 38. Nc5
{[%clk 0:00:27.5]} 38... Nf3 {[%clk 0:00:05]} 39. Ne6 {[%clk 0:00:24.4]} 39...
Re8 {[%clk 0:00:05.5]} 40. Rg7+ {[%clk 0:00:13.6]} 40... Kh8 {[%clk 0:00:05.4]}
41. Rg6 {[%clk 0:00:14.5]} 41... Nf7 {[%clk 0:00:05.9]} 42. Bxf5 {[%clk
0:00:12.6]} 42... N3e5 {[%clk 0:00:06.4]} 43. Rf6 {[%clk 0:00:12.1]} 43... Rb8
{[%clk 0:00:03.5]} 44. b3 {[%clk 0:00:08.6]} 44... Rb6 {[%clk 0:00:03.8]} 45. g4
{[%clk 0:00:07.2]} 45... Rb4 {[%clk 0:00:03.7]} 46. Kg3 {[%clk 0:00:06.9]} 46...
a5 {[%clk 0:00:04.2]} 47. Nc5 {[%clk 0:00:03.6]} 47... Kg7 {[%clk 0:00:02.4]}
48. Ra6 {[%clk 0:00:02.7]} 48... Rd4 {[%clk 0:00:02.7]} 49. Be6 {[%clk
0:00:02.4]} 49... Rf4 {[%clk 0:00:01.9]} 50. Bxf7 {[%clk 0:00:02.3]} 50... Kxf7
{[%clk 0:00:02.5]} 51. Ra7+ {[%clk 0:00:02.4]} 51... Kf6 {[%clk 0:00:01.9]} 52.
Ra6+ {[%clk 0:00:02.6]} 52... Ke7 {[%clk 0:00:02.3]} 53. Ra7+ {[%clk 0:00:02.8]}
53... Kd6 {[%clk 0:00:02.6]} 54. Nb7+ {[%clk 0:00:03]} 54... Kd5 {[%clk
0:00:02.7]} 55. Nxa5 {[%clk 0:00:03.5]} 55... Rxg4+ {[%clk 0:00:02.7]} 56. Kf2
{[%clk 0:00:03.2]} 56... Rh4 {[%clk 0:00:03.1]} 57. Ke3 {[%clk 0:00:03.5]} 57...
Rh3+ {[%clk 0:00:02.8]} 58. Kd2 {[%clk 0:00:03.7]} 58... Rxh2+ {[%clk
0:00:03.4]} 59. Kc3 {[%clk 0:00:04.1]} 59... Rxa2 {[%clk 0:00:03]} 60. Nc6
{[%clk 0:00:03.2]} 60... Rxa7 {[%clk 0:00:02.2]} 61. Nxa7 {[%clk 0:00:03.6]}
61... g4 {[%clk 0:00:02.8]} 62. Kd2 {[%clk 0:00:03.6]} 62... h5 {[%clk
0:00:03.3]} 63. Ke3 {[%clk 0:00:03.9]} 63... h4 {[%clk 0:00:03.8]} 64. Kf4
{[%clk 0:00:04]} 64... g3 {[%clk 0:00:04.5]} 65. Nb5 {[%clk 0:00:03.5]} 65... g2
{[%clk 0:00:04.6]} 66. Nc3+ {[%clk 0:00:03.9]} 66... Kc5 {[%clk 0:00:03.8]} 67.
Ne2 {[%clk 0:00:04.8]} 67... Nd3+ {[%clk 0:00:02.1]} 68. Kf3 {[%clk 0:00:04.8]}
68... h3 {[%clk 0:00:02.2]} 69. Kg3 {[%clk 0:00:04.4]} 69... Ne1 {[%clk
0:00:01.2]} 70. Kxh3 {[%clk 0:00:04]} 70... Kb4 {[%clk 0:00:01.8]} 71. Kh2
{[%clk 0:00:03.7]} 71... Kxb3 {[%clk 0:00:02.4]} 72. Nf4 {[%clk 0:00:04.1]}
72... g1=Q+ {[%clk 0:00:02.2]} 73. Kxg1 {[%clk 0:00:04.3]} 1/2-1/2

[Event "Early-Titled-Tuesday-Blitz-June-18-2024"]
[Site "Chess.com"]
[Date "2024.06.18"]
[Round "1"]
[White "Eliwood44"]
[Black "josmito10"]
[Result "1-0"]
[WhiteElo "2467"]
[BlackElo "2773"]
[TimeControl "180+1"]
[EndTime "8:09:04 PDT"]
[Termination "Eliwood44 won by resignation"]

1. d4 {[%clk 0:02:59.1]} 1... e6 {[%clk 0:02:59.8]} 2. c4 {[%clk 0:02:58]} 2...
d5 {[%clk 0:02:59]} 3. Nc3 {[%clk 0:02:57.1]} 3... a5 {[%clk 0:02:53.3]} 4. cxd5
{[%clk 0:02:55.7]} 4... exd5 {[%clk 0:02:50.9]} 5. Bf4 {[%clk 0:02:55.2]} 5...
c6 {[%clk 0:02:50.9]} 6. e3 {[%clk 0:02:54.9]} 6... Nf6 {[%clk 0:02:51.1]} 7.
Bd3 {[%clk 0:02:54.6]} 7... Bd6 {[%clk 0:02:51.1]} 8. Nf3 {[%clk 0:02:53.7]}
8... O-O {[%clk 0:02:48.9]} 9. O-O {[%clk 0:02:52.7]} 9... Bg4 {[%clk 0:02:47]}
10. Qc2 {[%clk 0:02:50.2]} 10... Bxf3 {[%clk 0:02:46.7]} 11. gxf3 {[%clk
0:02:50]} 11... Bxf4 {[%clk 0:02:46.7]} 12. exf4 {[%clk 0:02:49.8]} 12... Nh5
{[%clk 0:02:47]} 13. Bxh7+ {[%clk 0:02:47.7]} 13... Kh8 {[%clk 0:02:43.1]} 14.
Qf5 {[%clk 0:02:45.3]} 14... Qh4 {[%clk 0:02:40]} 15. Kh1 {[%clk 0:02:37.8]}
15... g6 {[%clk 0:02:37.2]} 16. Bxg6 {[%clk 0:02:35.2]} 16... Ng7 {[%clk
0:02:36.9]} 17. Qe5 {[%clk 0:02:21.9]} 17... fxg6 {[%clk 0:02:36.5]} 18. Rg1
{[%clk 0:02:22]} 18... Qxf4 {[%clk 0:02:35.2]} 19. Rxg6 {[%clk 0:02:17.1]} 19...
Qxe5 {[%clk 0:02:30.8]} 20. dxe5 {[%clk 0:02:18]} 20... Nd7 {[%clk 0:02:30.9]}
21. Rag1 {[%clk 0:02:14.5]} 21... Nf5 {[%clk 0:02:26.9]} 22. R6g5 {[%clk
0:02:01]} 22... Kh7 {[%clk 0:02:18.7]} 23. f4 {[%clk 0:01:57.4]} 23... Rg8
{[%clk 0:02:16.4]} 24. Rxf5 {[%clk 0:01:54.8]} 24... Rxg1+ {[%clk 0:02:16.1]}
25. Kxg1 {[%clk 0:01:54.6]} 25... Kg6 {[%clk 0:02:13.7]} 26. Rg5+ {[%clk
0:01:53.5]} 26... Kf7 {[%clk 0:02:13]} 27. Ne2 {[%clk 0:01:49.6]} 27... c5
{[%clk 0:02:12.6]} 28. h4 {[%clk 0:01:47.5]} 28... d4 {[%clk 0:02:12.1]} 29. Ng3
{[%clk 0:01:46.9]} 29... c4 {[%clk 0:02:08.9]} 30. Ne4 {[%clk 0:01:46.2]} 30...
a4 {[%clk 0:02:07.9]} 31. Nd6+ {[%clk 0:01:45.9]} 31... Ke6 {[%clk 0:02:07.9]}
32. Nxc4 {[%clk 0:01:44.6]} 32... b5 {[%clk 0:02:08.2]} 33. Nd2 {[%clk
0:01:41.1]} 33... b4 {[%clk 0:02:05.1]} 34. Kf1 {[%clk 0:01:38.9]} 34... a3
{[%clk 0:02:02.9]} 35. bxa3 {[%clk 0:01:36.7]} 35... Rxa3 {[%clk 0:02:02]} 36.
Rg6+ {[%clk 0:01:34.4]} 36... Kf5 {[%clk 0:02:01.1]} 37. Rd6 {[%clk 0:01:34.7]}
37... Rxa2 {[%clk 0:02:00.3]} 38. Rxd4 {[%clk 0:01:33.6]} 38... Nc5 {[%clk
0:01:59.3]} 39. Ke2 {[%clk 0:01:24.5]} 39... b3 {[%clk 0:01:57.8]} 40. Rb4
{[%clk 0:01:20.5]} 40... b2 {[%clk 0:01:55.5]} 41. Ke3 {[%clk 0:01:13.4]} 41...
Ra3+ {[%clk 0:01:53.5]} 42. Ke2 {[%clk 0:01:07.9]} 42... Nb3 {[%clk 0:01:49]}
43. Nb1 {[%clk 0:01:05.4]} 43... Nc1+ {[%clk 0:01:42.2]} 44. Kd1 {[%clk
0:01:03.4]} 44... Rh3 {[%clk 0:01:36.8]} 45. Rxb2 {[%clk 0:01:01.2]} 45... Nd3
{[%clk 0:01:36.1]} 46. Rb6 {[%clk 0:00:58.8]} 46... Nxf4 {[%clk 0:01:34.3]} 47.
Nd2 {[%clk 0:00:52.5]} 47... Kxe5 {[%clk 0:01:23.9]} 48. Rb5+ {[%clk 0:00:51.3]}
48... Kd4 {[%clk 0:01:19.3]} 49. Rb4+ {[%clk 0:00:51.4]} 49... Kd3 {[%clk
0:01:18.4]} 50. Rb3+ {[%clk 0:00:51.1]} 50... Kd4 {[%clk 0:01:18.6]} 51. Rxh3
{[%clk 0:00:51.1]} 51... Nxh3 {[%clk 0:01:19.5]} 52. Ke2 {[%clk 0:00:51.3]}
52... Ke5 {[%clk 0:01:19.7]} 53. Kf3 {[%clk 0:00:48.8]} 53... Kf5 {[%clk
0:01:16.9]} 54. Kg3 {[%clk 0:00:45.1]} 54... Nf4 {[%clk 0:01:12.8]} 55. Nc4
{[%clk 0:00:44.7]} 55... Ne2+ {[%clk 0:00:25.5]} 56. Kf3 {[%clk 0:00:38.4]}
56... Nd4+ {[%clk 0:00:20.6]} 57. Ke3 {[%clk 0:00:38.3]} 57... Nc2+ {[%clk
0:00:20.7]} 58. Kd2 {[%clk 0:00:37.3]} 58... Nd4 {[%clk 0:00:19.8]} 59. Ne3+
{[%clk 0:00:37.4]} 59... Kf4 {[%clk 0:00:19.3]} 60. Kd3 {[%clk 0:00:37.8]} 60...
Nf3 {[%clk 0:00:19]} 61. h5 {[%clk 0:00:38.1]} 61... Kg5 {[%clk 0:00:18.9]} 62.
Ke4 {[%clk 0:00:37.7]} 62... Nd2+ {[%clk 0:00:19.2]} 63. Ke5 {[%clk 0:00:37.7]}
63... Kxh5 {[%clk 0:00:18.1]} 64. f4 {[%clk 0:00:37.8]} 64... Nf3+ {[%clk
0:00:18.5]} 65. Ke6 {[%clk 0:00:37.3]} 65... Nd4+ {[%clk 0:00:18.5]} 66. Kd5
{[%clk 0:00:33.8]} 66... Ne2 {[%clk 0:00:14.7]} 67. f5 {[%clk 0:00:32.3]} 67...
Kg5 {[%clk 0:00:15.2]} 68. Ke5 {[%clk 0:00:30.1]} 68... Nf4 {[%clk 0:00:14.7]}
69. f6 {[%clk 0:00:25.3]} 69... Ng6+ {[%clk 0:00:14.5]} 70. Ke6 {[%clk
0:00:24.7]} 70... Nf8+ {[%clk 0:00:14.8]} 71. Ke7 {[%clk 0:00:20.2]} 71... Ng6+
{[%clk 0:00:15]} 72. Kf7 {[%clk 0:00:18.2]} 72... Ne5+ {[%clk 0:00:13]} 73. Kg7
{[%clk 0:00:18.1]} 73... Nd7 {[%clk 0:00:07.7]} 74. f7 {[%clk 0:00:17]} 74...
Nc5 {[%clk 0:00:08.3]} 75. Nd5 {[%clk 0:00:11.7]} 75... Ne6+ {[%clk 0:00:08.5]}
76. Kg8 {[%clk 0:00:12]} 76... Kg6 {[%clk 0:00:05]} 77. Nc7 {[%clk 0:00:09.7]}
77... Nxc7 {[%clk 0:00:01.8]} 78. f8=Q {[%clk 0:00:10.2]} 78... Ne6 {[%clk
0:00:02.4]} 79. Qf7+ {[%clk 0:00:10.2]} 1-0

[Event "Early-Titled-Tuesday-Blitz-June-18-2024"]
[Site "Chess.com"]
[Date "2024.06.18"]
[Round "1"]
[White "Louis-Paulsen-Fan"]
[Black "Rurep26"]
[Result "0-1"]
[WhiteElo "2418"]
[BlackElo "2742"]
[TimeControl "180+1"]
[EndTime "8:09:07 PDT"]
[Termination "Rurep26 won on time"]

1. d4 {[%clk 0:03:00.9]} 1... e6 {[%clk 0:02:59.1]} 2. Nf3 {[%clk 0:03:00.6]}
2... Nf6 {[%clk 0:02:57.8]} 3. c4 {[%clk 0:03:00.3]} 3... b6 {[%clk 0:02:55.8]}
4. Nc3 {[%clk 0:03:00.3]} 4... Bb4 {[%clk 0:02:54.7]} 5. Bg5 {[%clk 0:03:00.4]}
5... Bb7 {[%clk 0:02:53.3]} 6. Qc2 {[%clk 0:03:00.1]} 6... h6 {[%clk 0:02:52.3]}
7. Bh4 {[%clk 0:03:00.1]} 7... g5 {[%clk 0:02:47.3]} 8. Bg3 {[%clk 0:03:00.1]}
8... Ne4 {[%clk 0:02:47.8]} 9. Be5 {[%clk 0:03:00.2]} 9... f6 {[%clk 0:02:43]}
10. d5 {[%clk 0:02:59.7]} 10... exd5 {[%clk 0:02:33.4]} 11. cxd5 {[%clk
0:02:59.8]} 11... Bxd5 {[%clk 0:02:28.6]} 12. O-O-O {[%clk 0:02:59.4]} 12...
Nxc3 {[%clk 0:02:20.9]} 13. Bxc3 {[%clk 0:02:53]} 13... Bxc3 {[%clk 0:02:17.5]}
14. Rxd5 {[%clk 0:02:51.1]} 14... Bb4 {[%clk 0:02:16.8]} 15. Qg6+ {[%clk
0:02:43.6]} 15... Kf8 {[%clk 0:02:16.2]} 16. Rf5 {[%clk 0:02:30.1]} 16... Be7
{[%clk 0:02:15.5]} 17. Ne5 {[%clk 0:02:17.1]} 17... Qe8 {[%clk 0:02:11.7]} 18.
Rxf6+ {[%clk 0:02:16.8]} 18... Bxf6 {[%clk 0:02:11.5]} 19. Qxf6+ {[%clk
0:02:17]} 19... Kg8 {[%clk 0:02:12.4]} 20. e4 {[%clk 0:01:52.5]} 20... d5 {[%clk
0:02:09.4]} 21. Bb5 {[%clk 0:00:57]} 21... c6 {[%clk 0:02:09.3]} 22. Nxc6 {[%clk
0:00:56.5]} 22... Nxc6 {[%clk 0:02:08.1]} 23. Bxc6 {[%clk 0:00:56.8]} 23... Rc8
{[%clk 0:02:04.6]} 24. exd5 {[%clk 0:00:55.7]} 24... Qf7 {[%clk 0:01:57.5]} 25.
Qd4 {[%clk 0:00:50.2]} 25... Qf4+ {[%clk 0:01:55.8]} 26. Qxf4 {[%clk 0:00:46.4]}
26... gxf4 {[%clk 0:01:56.7]} 27. Re1 {[%clk 0:00:43.6]} 27... Rh7 {[%clk
0:01:51.8]} 28. Re6 {[%clk 0:00:40.3]} 28... Rg7 {[%clk 0:01:41.7]} 29. g3
{[%clk 0:00:39.9]} 29... fxg3 {[%clk 0:01:42]} 30. fxg3 {[%clk 0:00:38.8]} 30...
Kh7 {[%clk 0:01:39.4]} 31. b4 {[%clk 0:00:37.3]} 31... Rf7 {[%clk 0:01:32.4]}
32. b5 {[%clk 0:00:35.9]} 32... Rcf8 {[%clk 0:01:29.8]} 33. d6 {[%clk
0:00:33.3]} 33... Rf1+ {[%clk 0:01:22.8]} 34. Kd2 {[%clk 0:00:33.5]} 34... R8f2+
{[%clk 0:01:23.5]} 35. Ke3 {[%clk 0:00:33.9]} 35... Re1+ {[%clk 0:01:07]} 36.
Kxf2 {[%clk 0:00:31.7]} 36... Rxe6 {[%clk 0:01:07.9]} 37. d7 {[%clk 0:00:30.9]}
37... Rd6 {[%clk 0:01:08.3]} 38. Ke3 {[%clk 0:00:30.3]} 38... Kg7 {[%clk
0:01:08.8]} 39. Ke4 {[%clk 0:00:30.8]} 39... Kf6 {[%clk 0:01:08.8]} 40. g4
{[%clk 0:00:27.6]} 40... Ke7 {[%clk 0:01:09]} 41. Ke5 {[%clk 0:00:25.4]} 41...
Rd2 {[%clk 0:01:06.8]} 42. h4 {[%clk 0:00:24.4]} 42... Rxa2 {[%clk 0:01:04.1]}
43. g5 {[%clk 0:00:24.6]} 43... hxg5 {[%clk 0:01:04]} 44. hxg5 {[%clk
0:00:25.5]} 44... a5 {[%clk 0:00:59.3]} 45. bxa6 {[%clk 0:00:17.2]} 45... Rxa6
{[%clk 0:00:59.8]} 46. Kd4 {[%clk 0:00:12.6]} 46... Ra1 {[%clk 0:00:57.1]} 47.
Kc4 {[%clk 0:00:10.9]} 47... Rg1 {[%clk 0:00:53.7]} 48. Kb5 {[%clk 0:00:10.6]}
48... Rb1+ {[%clk 0:00:50.1]} 49. Ka6 {[%clk 0:00:10.3]} 49... Kd8 {[%clk
0:00:50.3]} 50. g6 {[%clk 0:00:09.6]} 50... Rg1 {[%clk 0:00:49.2]} 51. Kxb6
{[%clk 0:00:09.2]} 51... Rxg6 {[%clk 0:00:49.4]} 52. Kb5 {[%clk 0:00:09.4]}
52... Kc7 {[%clk 0:00:48.9]} 53. d8=Q+ {[%clk 0:00:07.6]} 53... Kxd8 {[%clk
0:00:48.4]} 54. Kc5 {[%clk 0:00:07.7]} 54... Kc7 {[%clk 0:00:48.8]} 55. Bd5
{[%clk 0:00:08]} 55... Rg5 {[%clk 0:00:49.6]} 56. Kd4 {[%clk 0:00:08.3]} 56...
Kd6 {[%clk 0:00:50.5]} 57. Be4 {[%clk 0:00:07.7]} 57... Rg4 {[%clk 0:00:50.9]}
58. Ke3 {[%clk 0:00:08.1]} 58... Ke5 {[%clk 0:00:51.5]} 59. Bh7 {[%clk
0:00:08.2]} 59... Rg3+ {[%clk 0:00:50.4]} 60. Kf2 {[%clk 0:00:08]} 60... Kf4
{[%clk 0:00:51.3]} 61. Bc2 {[%clk 0:00:06.5]} 61... Ra3 {[%clk 0:00:50.3]} 62.
Bh7 {[%clk 0:00:05.8]} 62... Ra2+ {[%clk 0:00:50.3]} 63. Ke1 {[%clk 0:00:06.3]}
63... Ke3 {[%clk 0:00:50.8]} 64. Kd1 {[%clk 0:00:06.5]} 64... Rh2 {[%clk
0:00:49.7]} 65. Bg6 {[%clk 0:00:06.1]} 65... Rd2+ {[%clk 0:00:49]} 66. Kc1
{[%clk 0:00:05.9]} 66... Rf2 {[%clk 0:00:49.7]} 67. Bh7 {[%clk 0:00:06]} 67...
Kd4 {[%clk 0:00:50.1]} 68. Bg6 {[%clk 0:00:06.2]} 68... Kc3 {[%clk 0:00:51]} 69.
Kd1 {[%clk 0:00:06]} 69... Rg2 {[%clk 0:00:51.5]} 70. Bh7 {[%clk 0:00:05.3]}
70... Kd4 {[%clk 0:00:50.1]} 71. Bf5 {[%clk 0:00:05]} 71... Ke3 {[%clk
0:00:50.6]} 72. Bh7 {[%clk 0:00:05]} 72... Rg5 {[%clk 0:00:49.8]} 73. Kc1 {[%clk
0:00:03.6]} 73... Rc5+ {[%clk 0:00:48.9]} 74. Kb2 {[%clk 0:00:03.5]} 74... Kd2
{[%clk 0:00:48.3]} 75. Kb3 {[%clk 0:00:03.7]} 75... Rc3+ {[%clk 0:00:47.4]} 76.
Kb4 {[%clk 0:00:03.8]} 76... Rc7 {[%clk 0:00:48.3]} 77. Bg6 {[%clk 0:00:04]}
77... Ke3 {[%clk 0:00:48.7]} 78. Bf5 {[%clk 0:00:03.8]} 78... Kd4 {[%clk
0:00:49.4]} 79. Kb5 {[%clk 0:00:03.9]} 79... Kd5 {[%clk 0:00:48.6]} 80. Kb4
{[%clk 0:00:03.6]} 80... Rb7+ {[%clk 0:00:46.9]} 81. Kc3 {[%clk 0:00:03.4]}
81... Rf7 {[%clk 0:00:47.8]} 82. Bg6 {[%clk 0:00:03.2]} 82... Rf6 {[%clk
0:00:47.8]} 83. Bh7 {[%clk 0:00:03]} 83... Rf3+ {[%clk 0:00:47.6]} 84. Kd2
{[%clk 0:00:02.8]} 84... Rg3 {[%clk 0:00:48.5]} 85. Bf5 {[%clk 0:00:02.8]} 85...
Kd4 {[%clk 0:00:49.4]} 86. Bh7 {[%clk 0:00:02.5]} 86... Ke5 {[%clk 0:00:49.8]}
87. Ke1 {[%clk 0:00:02.9]} 87... Kf4 {[%clk 0:00:50.7]} 88. Kf2 {[%clk
0:00:03.3]} 88... Rh3 {[%clk 0:00:50.7]} 89. Bb1 {[%clk 0:00:02.6]} 89... Rh2+
{[%clk 0:00:51.1]} 90. Ke1 {[%clk 0:00:03]} 90... Rh1+ {[%clk 0:00:50.7]} 91.
Kd2 {[%clk 0:00:03.4]} 91... Rxb1 {[%clk 0:00:51.6]} 0-1

[Event "Early-Titled-Tuesday-Blitz-June-18-2024"]
[Site "Chess.com"]
[Date "2024.06.18"]
[Round "1"]
[White "bocah_sakit"]
[Black "Guldona_2007"]
[Result "1-0"]
[WhiteElo "2614"]
[BlackElo "2262"]
[TimeControl "180+1"]
[EndTime "8:09:19 PDT"]
[Termination "bocah_sakit won by resignation"]

1. e4 {[%clk 0:02:57.2]} 1... c5 {[%clk 0:02:53.6]} 2. Nf3 {[%clk 0:02:56.5]}
2... Nc6 {[%clk 0:02:51.4]} 3. Bb5 {[%clk 0:02:56]} 3... d6 {[%clk 0:02:49.9]}
4. O-O {[%clk 0:02:54.8]} 4... Bd7 {[%clk 0:02:48.1]} 5. Re1 {[%clk 0:02:54.7]}
5... e5 {[%clk 0:02:45]} 6. c3 {[%clk 0:02:53.5]} 6... Nf6 {[%clk 0:02:43.9]} 7.
d4 {[%clk 0:02:53.3]} 7... cxd4 {[%clk 0:02:41.6]} 8. cxd4 {[%clk 0:02:54.2]}
8... Qc7 {[%clk 0:02:38.1]} 9. Nc3 {[%clk 0:02:52.7]} 9... Be7 {[%clk
0:02:36.6]} 10. Nd5 {[%clk 0:02:47.8]} 10... Nxd5 {[%clk 0:02:28]} 11. exd5
{[%clk 0:02:48.7]} 11... Nxd4 {[%clk 0:02:20.4]} 12. Nxd4 {[%clk 0:02:45.9]}
12... exd4 {[%clk 0:02:19.2]} 13. Bxd7+ {[%clk 0:02:19.5]} 13... Qxd7 {[%clk
0:02:19]} 14. Bg5 {[%clk 0:02:20.1]} 14... f6 {[%clk 0:02:14.2]} 15. Bf4 {[%clk
0:02:09.1]} 15... O-O {[%clk 0:02:08.6]} 16. Qxd4 {[%clk 0:02:09.4]} 16... Rfe8
{[%clk 0:02:01.2]} 17. Re6 {[%clk 0:02:06.2]} 17... a6 {[%clk 0:01:59.3]} 18.
Rae1 {[%clk 0:02:07.1]} 18... Bf8 {[%clk 0:01:58.9]} 19. Qb6 {[%clk 0:02:06.1]}
19... Red8 {[%clk 0:01:50.9]} 20. h4 {[%clk 0:02:04.7]} 20... Rac8 {[%clk
0:01:50.3]} 21. b3 {[%clk 0:02:04.4]} 21... Qc7 {[%clk 0:01:47.3]} 22. Qe3
{[%clk 0:02:01.7]} 22... Qc5 {[%clk 0:01:42]} 23. Qe4 {[%clk 0:01:59.7]} 23...
Qc2 {[%clk 0:01:37.1]} 24. Qa4 {[%clk 0:01:41.7]} 24... Qc5 {[%clk 0:01:32.5]}
25. Qe4 {[%clk 0:01:26.1]} 25... Qc2 {[%clk 0:01:31]} 26. Qb4 {[%clk 0:01:18.9]}
26... b5 {[%clk 0:01:08.9]} 27. Qa5 {[%clk 0:01:14.2]} 27... Qc5 {[%clk
0:01:02.1]} 28. Rd1 {[%clk 0:01:06.7]} 28... Rd7 {[%clk 0:00:34.1]} 29. h5
{[%clk 0:01:00.8]} 29... b4 {[%clk 0:00:21.1]} 30. Qxa6 {[%clk 0:00:59.2]} 30...
Ra7 {[%clk 0:00:21.1]} 31. Qe2 {[%clk 0:00:59.9]} 31... Qc2 {[%clk 0:00:19.8]}
32. Rd2 {[%clk 0:00:58.4]} 32... Qb1+ {[%clk 0:00:18.8]} 33. Kh2 {[%clk
0:00:58.8]} 33... Qf5 {[%clk 0:00:17.6]} 34. g3 {[%clk 0:00:41]} 34... Rd7
{[%clk 0:00:13.4]} 35. Re8 {[%clk 0:00:39.1]} 35... Rxe8 {[%clk 0:00:12.1]} 36.
Qxe8 {[%clk 0:00:40]} 36... Re7 {[%clk 0:00:11.5]} 37. Qb5 {[%clk 0:00:18.9]}
37... Qxh5+ {[%clk 0:00:11.6]} 38. Kg2 {[%clk 0:00:19.5]} 38... Re1 {[%clk
0:00:09.7]} 39. Qf1 {[%clk 0:00:04.2]} 39... Rxf1 {[%clk 0:00:09.2]} 40. Kxf1
{[%clk 0:00:05.1]} 40... Qh1+ {[%clk 0:00:09.3]} 41. Ke2 {[%clk 0:00:05.4]}
41... Qe4+ {[%clk 0:00:09.9]} 42. Be3 {[%clk 0:00:06.2]} 42... g5 {[%clk
0:00:10]} 43. Rd4 {[%clk 0:00:06.8]} 43... Qe5 {[%clk 0:00:10.2]} 44. Rxb4
{[%clk 0:00:06.4]} 44... f5 {[%clk 0:00:10.3]} 45. Rd4 {[%clk 0:00:06.2]} 45...
f4 {[%clk 0:00:10.7]} 46. gxf4 {[%clk 0:00:07.1]} 46... gxf4 {[%clk 0:00:10.9]}
47. Rxf4 {[%clk 0:00:08]} 47... Qxd5 {[%clk 0:00:11.3]} 48. Rg4+ {[%clk
0:00:08.5]} 48... Kf7 {[%clk 0:00:11.6]} 49. Rd4 {[%clk 0:00:09.2]} 49... Qh5+
{[%clk 0:00:11.1]} 50. Kd2 {[%clk 0:00:08.9]} 50... Bh6 {[%clk 0:00:10.7]} 51.
a4 {[%clk 0:00:02]} 51... Bxe3+ {[%clk 0:00:10.5]} 52. Kxe3 {[%clk 0:00:02.9]}
52... Qe5+ {[%clk 0:00:11.1]} 53. Kd3 {[%clk 0:00:03.3]} 53... Qc5 {[%clk
0:00:11.4]} 54. Rf4+ {[%clk 0:00:03.4]} 54... Kg6 {[%clk 0:00:11.1]} 55. Rd4
{[%clk 0:00:04.2]} 55... Qf5+ {[%clk 0:00:10.5]} 56. Ke3 {[%clk 0:00:04.1]}
56... d5 {[%clk 0:00:10.9]} 57. a5 {[%clk 0:00:04.2]} 57... Qe5+ {[%clk
0:00:11.1]} 58. Kd3 {[%clk 0:00:04.5]} 58... Qf5+ {[%clk 0:00:11.3]} 59. Kc3
{[%clk 0:00:05]} 59... Qxf2 {[%clk 0:00:11.2]} 60. Rxd5 {[%clk 0:00:05.7]} 60...
Qe3+ {[%clk 0:00:11.6]} 61. Kc4 {[%clk 0:00:06.2]} 61... Qc1+ {[%clk 0:00:11.6]}
62. Kb5 {[%clk 0:00:05.7]} 62... Qc3 {[%clk 0:00:11.3]} 63. b4 {[%clk
0:00:05.6]} 63... Qc7 {[%clk 0:00:10.7]} 64. a6 {[%clk 0:00:05.3]} 64... h5
{[%clk 0:00:10.9]} 65. Rc5 {[%clk 0:00:05.3]} 65... Qd7+ {[%clk 0:00:11.2]} 66.
Kb6 {[%clk 0:00:05.6]} 66... h4 {[%clk 0:00:10.8]} 67. a7 {[%clk 0:00:05.8]}
67... Qd8+ {[%clk 0:00:11]} 68. Kb7 {[%clk 0:00:06.2]} 68... Qd7+ {[%clk
0:00:11.1]} 69. Ka6 {[%clk 0:00:06.8]} 69... Qd8 {[%clk 0:00:10.6]} 70. Rb5
{[%clk 0:00:06.1]} 70... Kh7 {[%clk 0:00:10]} 71. Rb7+ {[%clk 0:00:05.8]} 71...
Kh6 {[%clk 0:00:09.7]} 72. Rb8 {[%clk 0:00:06.7]} 72... Qd6+ {[%clk 0:00:09.7]}
73. Rb6 {[%clk 0:00:07.4]} 73... Qxb6+ {[%clk 0:00:08.9]} 74. Kxb6 {[%clk
0:00:08.3]} 74... h3 {[%clk 0:00:09.2]} 75. a8=Q {[%clk 0:00:09.2]} 75... h2
{[%clk 0:00:09.4]} 76. Qh1 {[%clk 0:00:10.1]} 1-0